[Event "*** SCC Grand Prix: Titled Tuesday Blitz"]
[Site "Chess.com"]
[Date "2020.07.14"]
[Round "3"]
[White "wonderfultime"]
[Black "temus_galaktionov"]
[Result "1-0"]
[WhiteElo "2963"]
[BlackElo "2665"]
[TimeControl "180+1"]
[EndTime "10:23:30 PDT"]
[Termination "wonderfultime won by resignation"]

1. d4 {[%clk 0:03:00.9]} 1... c6 {[%clk 0:03:00.9]} 2. Nf3 {[%clk 0:02:59.2]}
2... g6 {[%clk 0:03:01.8]} 3. e4 {[%clk 0:02:58]} 3... d6 {[%clk 0:03:02.7]} 4.
Nc3 {[%clk 0:02:58.4]} 4... Bg7 {[%clk 0:03:02.9]} 5. Bc4 {[%clk 0:02:56.2]}
5... Nd7 {[%clk 0:03:02.3]} 6. O-O {[%clk 0:02:56]} 6... e5 {[%clk 0:03:01.7]}
7. dxe5 {[%clk 0:02:53.8]} 7... dxe5 {[%clk 0:03:02.6]} 8. Bg5 {[%clk
0:02:43.3]} 8... Ngf6 {[%clk 0:03:02]} 9. Qd6 {[%clk 0:02:28.6]} 9... h6 {[%clk
0:02:57.6]} 10. Nxe5 {[%clk 0:02:22.1]} 10... Nxe5 {[%clk 0:02:44.3]} 11. Qxe5+
{[%clk 0:02:23]} 11... Kf8 {[%clk 0:02:42.5]} 12. Rad1 {[%clk 0:02:23]} 12...
Qe8 {[%clk 0:02:28.2]} 13. Bxf6 {[%clk 0:02:15.2]} 13... Qxe5 {[%clk 0:02:27.4]}
14. Rd8+ {[%clk 0:02:15.8]} 14... Qe8 {[%clk 0:02:26.9]} 15. Rxe8+ {[%clk
0:02:16.7]} 1-0

[Event "*** SCC Grand Prix: Titled Tuesday Blitz"]
[Site "Chess.com"]
[Date "2020.07.14"]
[Round "3"]
[White "NMZanette"]
[Black "KingCrusher275"]
[Result "0-1"]
[WhiteElo "2127"]
[BlackElo "2370"]
[TimeControl "180+1"]
[EndTime "10:24:29 PDT"]
[Termination "KingCrusher275 won by resignation"]

1. e4 {[%clk 0:03:00.9]} 1... c5 {[%clk 0:02:59.9]} 2. Nf3 {[%clk 0:03:00.8]}
2... e6 {[%clk 0:02:59.9]} 3. c3 {[%clk 0:03:00.8]} 3... d5 {[%clk 0:02:59.3]}
4. exd5 {[%clk 0:03:00.7]} 4... exd5 {[%clk 0:03:00.2]} 5. d4 {[%clk 0:03:01.2]}
5... Nc6 {[%clk 0:03:00.2]} 6. Bb5 {[%clk 0:03:00.4]} 6... Bd6 {[%clk
0:02:58.9]} 7. dxc5 {[%clk 0:03:00]} 7... Bxc5 {[%clk 0:02:58.6]} 8. O-O {[%clk
0:03:00.6]} 8... Ne7 {[%clk 0:02:58.6]} 9. h3 {[%clk 0:02:52.8]} 9... O-O {[%clk
0:02:55.2]} 10. Nbd2 {[%clk 0:02:49.9]} 10... Bf5 {[%clk 0:02:51.4]} 11. Nb3
{[%clk 0:02:49.8]} 11... Bd6 {[%clk 0:02:46.8]} 12. Bd3 {[%clk 0:02:49.6]} 12...
Bc7 {[%clk 0:02:34.4]} 13. Bxf5 {[%clk 0:02:44.3]} 13... Nxf5 {[%clk 0:02:34.5]}
14. Qd3 {[%clk 0:02:44.4]} 14... g6 {[%clk 0:02:23.9]} 15. Bg5 {[%clk
0:02:41.2]} 15... Qd6 {[%clk 0:02:22.3]} 16. Rad1 {[%clk 0:02:39.8]} 16... h6
{[%clk 0:02:13.8]} 17. Be3 {[%clk 0:02:28]} 17... Nh4 {[%clk 0:01:48.7]} 18. g3
{[%clk 0:02:19.1]} 18... Nxf3+ {[%clk 0:01:48.3]} 19. Kg2 {[%clk 0:02:19.6]}
19... Nfe5 {[%clk 0:01:44.7]} 0-1

[Event "*** SCC Grand Prix: Titled Tuesday Blitz"]
[Site "Chess.com"]
[Date "2020.07.14"]
[Round "3"]
[White "QueenOfTactics90"]
[Black "Fortitudine"]
[Result "1/2-1/2"]
[WhiteElo "2004"]
[BlackElo "2276"]
[TimeControl "180+1"]
[EndTime "10:24:40 PDT"]
[Termination "Game drawn by repetition"]

1. e4 {[%clk 0:03:00.9]} 1... c5 {[%clk 0:02:59.5]} 2. Nf3 {[%clk 0:03:00.2]}
2... d6 {[%clk 0:02:59.8]} 3. d4 {[%clk 0:03:00.4]} 3... cxd4 {[%clk 0:03:00.7]}
4. Nxd4 {[%clk 0:03:01.3]} 4... Nf6 {[%clk 0:03:01.3]} 5. f3 {[%clk 0:03:01.9]}
5... e5 {[%clk 0:03:00.7]} 6. Nb3 {[%clk 0:03:00.4]} 6... a5 {[%clk 0:03:01]} 7.
a4 {[%clk 0:02:57.4]} 7... Be7 {[%clk 0:02:32.7]} 8. c4 {[%clk 0:02:55.2]} 8...
O-O {[%clk 0:02:29.6]} 9. Be3 {[%clk 0:02:54.4]} 9... Nc6 {[%clk 0:02:27.8]} 10.
Nc3 {[%clk 0:02:50.4]} 10... Be6 {[%clk 0:02:26.1]} 11. Rc1 {[%clk 0:02:47.4]}
11... Nb4 {[%clk 0:02:22.2]} 12. Be2 {[%clk 0:02:35.9]} 12... Rc8 {[%clk
0:02:19.5]} 13. Nb5 {[%clk 0:02:29.7]} 13... Na2 {[%clk 0:02:04.6]} 14. Rc2
{[%clk 0:02:28.4]} 14... Nb4 {[%clk 0:02:02.6]} 15. Rc3 {[%clk 0:02:25]} 15...
Na2 {[%clk 0:02:00.4]} 16. Rc2 {[%clk 0:02:24]} 16... Nb4 {[%clk 0:01:44.7]} 17.
Rc3 {[%clk 0:02:23.4]} 17... Na2 {[%clk 0:01:26.6]} 18. Rc2 {[%clk 0:02:22.5]}
1/2-1/2

[Event "*** SCC Grand Prix: Titled Tuesday Blitz"]
[Site "Chess.com"]
[Date "2020.07.14"]
[Round "3"]
[White "BabyBoss31"]
[Black "Savva09022009"]
[Result "0-1"]
[WhiteElo "2203"]
[BlackElo "2443"]
[TimeControl "180+1"]
[EndTime "10:24:53 PDT"]
[Termination "Savva09022009 won by resignation"]

1. d4 {[%clk 0:03:00.9]} 1... Nf6 {[%clk 0:02:59.4]} 2. c4 {[%clk 0:03:00.7]}
2... e6 {[%clk 0:02:59.2]} 3. Nf3 {[%clk 0:02:59.5]} 3... d5 {[%clk 0:02:58.2]}
4. g3 {[%clk 0:02:58.8]} 4... dxc4 {[%clk 0:02:56.8]} 5. Qc2 {[%clk 0:02:59]}
5... b5 {[%clk 0:02:47.1]} 6. a4 {[%clk 0:02:18.7]} 6... c6 {[%clk 0:02:44.8]}
7. axb5 {[%clk 0:02:09.2]} 7... cxb5 {[%clk 0:02:45.7]} 8. Bg2 {[%clk
0:02:09.8]} 8... Bb7 {[%clk 0:02:43.1]} 9. Nc3 {[%clk 0:02:09.2]} 9... a6 {[%clk
0:02:38.3]} 10. O-O {[%clk 0:02:03.4]} 10... Be7 {[%clk 0:02:35.1]} 11. Re1
{[%clk 0:01:58.5]} 11... O-O {[%clk 0:02:33]} 12. e4 {[%clk 0:01:57.8]} 12...
Nc6 {[%clk 0:02:31.6]} 13. Be3 {[%clk 0:01:51.5]} 13... Nb4 {[%clk 0:02:24.1]}
14. Qb1 {[%clk 0:01:24.9]} 14... Nd3 {[%clk 0:02:20.5]} 15. e5 {[%clk
0:01:24.8]} 15... Nxe1 {[%clk 0:02:15.7]} 16. Nxe1 {[%clk 0:01:25.7]} 16... Nd5
{[%clk 0:02:12.5]} 0-1

[Event "*** SCC Grand Prix: Titled Tuesday Blitz"]
[Site "Chess.com"]
[Date "2020.07.14"]
[Round "3"]
[White "juniortay"]
[Black "picturesquecheck"]
[Result "0-1"]
[WhiteElo "2396"]
[BlackElo "2232"]
[TimeControl "180+1"]
[EndTime "10:25:01 PDT"]
[Termination "picturesquecheck won by resignation"]

1. e4 {[%clk 0:03:00.9]} 1... c5 {[%clk 0:02:54.4]} 2. Nf3 {[%clk 0:03:01.1]}
2... Nc6 {[%clk 0:02:54.4]} 3. b4 {[%clk 0:03:00.1]} 3... cxb4 {[%clk
0:02:51.9]} 4. d4 {[%clk 0:03:00.3]} 4... d5 {[%clk 0:02:52.2]} 5. exd5 {[%clk
0:03:01.2]} 5... Qxd5 {[%clk 0:02:52]} 6. c4 {[%clk 0:03:02.1]} 6... bxc3 {[%clk
0:02:51.8]} 7. Nxc3 {[%clk 0:03:02.7]} 7... Qa5 {[%clk 0:02:51.9]} 8. d5 {[%clk
0:03:03.3]} 8... Qxc3+ {[%clk 0:02:48]} 9. Bd2 {[%clk 0:03:03.3]} 9... Qf6
{[%clk 0:02:41]} 10. dxc6 {[%clk 0:03:04.2]} 10... bxc6 {[%clk 0:02:41]} 11. Be2
{[%clk 0:03:01.4]} 11... e5 {[%clk 0:02:36.3]} 12. O-O {[%clk 0:03:00.9]} 12...
h6 {[%clk 0:02:32.7]} 13. Rc1 {[%clk 0:02:57.2]} 13... Bd7 {[%clk 0:02:20.5]}
14. Ba6 {[%clk 0:02:55.7]} 14... Ba3 {[%clk 0:02:16.1]} 15. Nxe5 {[%clk
0:02:51.9]} 15... Rd8 {[%clk 0:02:00.2]} 16. Re1 {[%clk 0:02:40.5]} 16... Ne7
{[%clk 0:01:58.2]} 17. Rc3 {[%clk 0:02:32.3]} 17... Bd6 {[%clk 0:01:41.8]} 18.
Rf3 {[%clk 0:01:49.7]} 18... Bxe5 {[%clk 0:01:34.9]} 19. Rxe5 {[%clk 0:01:50.6]}
19... Qxe5 {[%clk 0:01:32.3]} 0-1

[Event "*** SCC Grand Prix: Titled Tuesday Blitz"]
[Site "Chess.com"]
[Date "2020.07.14"]
[Round "3"]
[White "pfalcon1949"]
[Black "DanielTitichoca"]
[Result "0-1"]
[WhiteElo "2075"]
[BlackElo "2336"]
[TimeControl "180+1"]
[EndTime "10:25:08 PDT"]
[Termination "DanielTitichoca won by resignation"]

1. d4 {[%clk 0:03:00.9]} 1... Nf6 {[%clk 0:02:47]} 2. c4 {[%clk 0:03:00.4]} 2...
e6 {[%clk 0:02:46.2]} 3. Nc3 {[%clk 0:03:00.3]} 3... Bb4 {[%clk 0:02:45.2]} 4.
Qc2 {[%clk 0:03:00]} 4... O-O {[%clk 0:02:43.1]} 5. e4 {[%clk 0:02:58.8]} 5...
c5 {[%clk 0:02:41.5]} 6. d5 {[%clk 0:02:55]} 6... exd5 {[%clk 0:02:39.8]} 7.
exd5 {[%clk 0:02:33.9]} 7... Re8+ {[%clk 0:02:37.2]} 8. Ne2 {[%clk 0:02:22.7]}
8... d6 {[%clk 0:02:35.4]} 9. h3 {[%clk 0:02:22.1]} 9... Ne4 {[%clk 0:02:34.9]}
10. Be3 {[%clk 0:02:20]} 10... Bf5 {[%clk 0:02:31.7]} 11. Qb3 {[%clk 0:02:16.3]}
11... Qh4 {[%clk 0:02:20.3]} 12. a3 {[%clk 0:01:59.7]} 12... Bxc3+ {[%clk
0:02:06.4]} 13. Nxc3 {[%clk 0:01:57.7]} 13... Nxf2 {[%clk 0:02:02.9]} 14. Qxb7
{[%clk 0:01:24.2]} 14... Rxe3+ {[%clk 0:01:56.7]} 15. Kd2 {[%clk 0:01:20]} 15...
Qd4+ {[%clk 0:01:54]} 0-1

[Event "*** SCC Grand Prix: Titled Tuesday Blitz"]
[Site "Chess.com"]
[Date "2020.07.14"]
[Round "3"]
[White "Sanan_Sjugirov"]
[Black "GiantThresher"]
[Result "1-0"]
[WhiteElo "2979"]
[BlackElo "2629"]
[TimeControl "180+1"]
[EndTime "10:25:16 PDT"]
[Termination "Sanan_Sjugirov won by resignation"]

1. d4 {[%clk 0:03:00.9]} 1... Nf6 {[%clk 0:02:58.7]} 2. c4 {[%clk 0:03:00.8]}
2... e6 {[%clk 0:02:55.2]} 3. Nf3 {[%clk 0:03:00.5]} 3... d5 {[%clk 0:02:55.2]}
4. Nc3 {[%clk 0:02:59.9]} 4... dxc4 {[%clk 0:02:55.4]} 5. e4 {[%clk 0:02:59.1]}
5... Bb4 {[%clk 0:02:50.9]} 6. Bg5 {[%clk 0:02:58.2]} 6... c5 {[%clk 0:02:50.4]}
7. Bxc4 {[%clk 0:02:56]} 7... cxd4 {[%clk 0:02:48.6]} 8. Nxd4 {[%clk 0:02:56.1]}
8... Bxc3+ {[%clk 0:02:47.8]} 9. bxc3 {[%clk 0:02:55.5]} 9... Qa5 {[%clk
0:02:48.7]} 10. Bxf6 {[%clk 0:02:48.9]} 10... Qxc3+ {[%clk 0:02:46]} 11. Kf1
{[%clk 0:02:48.8]} 11... gxf6 {[%clk 0:02:46.5]} 12. Rc1 {[%clk 0:02:45.9]}
12... Qa5 {[%clk 0:02:14.8]} 13. g3 {[%clk 0:02:43.6]} 13... Bd7 {[%clk
0:02:09.1]} 14. Kg2 {[%clk 0:02:40.2]} 14... Nc6 {[%clk 0:02:07.9]} 15. Nb5
{[%clk 0:02:31.6]} 15... Ne5 {[%clk 0:01:51.8]} 16. Qd6 {[%clk 0:02:15.3]} 16...
Bxb5 {[%clk 0:01:37.2]} 17. Bxb5+ {[%clk 0:02:15]} 17... Qxb5 {[%clk 0:01:37]}
18. Rc7 {[%clk 0:02:14.7]} 18... Qd7 {[%clk 0:01:11.9]} 19. Rxd7 {[%clk
0:02:12]} 19... Nxd7 {[%clk 0:01:12.8]} 20. Rc1 {[%clk 0:02:06.8]} 1-0

[Event "*** SCC Grand Prix: Titled Tuesday Blitz"]
[Site "Chess.com"]
[Date "2020.07.14"]
[Round "3"]
[White "Agent-JL"]
[Black "AlexOstrovskiy"]
[Result "0-1"]
[WhiteElo "2403"]
[BlackElo "2625"]
[TimeControl "180+1"]
[EndTime "10:25:16 PDT"]
[Termination "AlexOstrovskiy won by resignation"]

1. d4 {[%clk 0:03:00.9]} 1... e6 {[%clk 0:02:59.5]} 2. c4 {[%clk 0:03:01.1]}
2... b6 {[%clk 0:02:59.6]} 3. Nf3 {[%clk 0:03:01.6]} 3... Bb7 {[%clk 0:02:59.6]}
4. Nc3 {[%clk 0:03:01.8]} 4... Bb4 {[%clk 0:02:58.8]} 5. Qc2 {[%clk 0:03:02.2]}
5... f5 {[%clk 0:02:58.1]} 6. a3 {[%clk 0:02:58.9]} 6... Bxc3+ {[%clk
0:02:57.4]} 7. Qxc3 {[%clk 0:02:59.4]} 7... Nf6 {[%clk 0:02:58]} 8. Bg5 {[%clk
0:02:58.7]} 8... O-O {[%clk 0:02:56.5]} 9. e3 {[%clk 0:02:55.6]} 9... d6 {[%clk
0:02:52.5]} 10. Be2 {[%clk 0:02:45.9]} 10... Nbd7 {[%clk 0:02:50.1]} 11. b4
{[%clk 0:02:43.8]} 11... a5 {[%clk 0:02:46.8]} 12. O-O {[%clk 0:02:09.4]} 12...
Ne4 {[%clk 0:02:46.3]} 13. Bxd8 {[%clk 0:01:57.1]} 13... Nxc3 {[%clk 0:02:44.8]}
14. Bxc7 {[%clk 0:01:43.6]} 14... Nxe2+ {[%clk 0:02:43.7]} 15. Kh1 {[%clk
0:01:43.2]} 15... Rfc8 {[%clk 0:02:29.3]} 16. Bxd6 {[%clk 0:01:42.7]} 16... Rxc4
{[%clk 0:02:28]} 17. Rfe1 {[%clk 0:01:42.1]} 17... Nc3 {[%clk 0:02:22.5]} 18.
Nd2 {[%clk 0:01:28.5]} 18... Rc6 {[%clk 0:02:19.5]} 19. Bg3 {[%clk 0:01:27.3]}
19... axb4 {[%clk 0:02:10]} 20. axb4 {[%clk 0:01:28.2]} 20... Rxa1 {[%clk
0:02:10]} 21. Rxa1 {[%clk 0:01:29.1]} 21... Ne2 {[%clk 0:02:10.2]} 22. Bh4
{[%clk 0:01:16.7]} 22... Rc1+ {[%clk 0:02:00.1]} 0-1

[Event "*** SCC Grand Prix: Titled Tuesday Blitz"]
[Site "Chess.com"]
[Date "2020.07.14"]
[Round "3"]
[White "DariaVoit"]
[Black "quesfr"]
[Result "1-0"]
[WhiteElo "2468"]
[BlackElo "2207"]
[TimeControl "180+1"]
[EndTime "10:25:18 PDT"]
[Termination "DariaVoit won by resignation"]

1. d4 {[%clk 0:03:00.9]} 1... d5 {[%clk 0:02:59.6]} 2. Nf3 {[%clk 0:03:00.4]}
2... Nf6 {[%clk 0:02:59.4]} 3. c4 {[%clk 0:03:00.9]} 3... e6 {[%clk 0:02:59.6]}
4. g3 {[%clk 0:03:00.5]} 4... Be7 {[%clk 0:02:59.5]} 5. Bg2 {[%clk 0:03:00.7]}
5... O-O {[%clk 0:03:00.1]} 6. O-O {[%clk 0:03:00.9]} 6... dxc4 {[%clk 0:03:00]}
7. Qc2 {[%clk 0:03:01.3]} 7... b5 {[%clk 0:02:59.9]} 8. a4 {[%clk 0:03:00]} 8...
b4 {[%clk 0:03:00]} 9. Nfd2 {[%clk 0:02:58.7]} 9... Nd5 {[%clk 0:02:59.4]} 10.
Nxc4 {[%clk 0:02:54.4]} 10... c5 {[%clk 0:02:58.4]} 11. e4 {[%clk 0:02:46.1]}
11... Nb6 {[%clk 0:02:52]} 12. Rd1 {[%clk 0:02:30.9]} 12... Qc7 {[%clk
0:02:47.5]} 13. Bf4 {[%clk 0:02:27.5]} 13... Qb7 {[%clk 0:02:34.4]} 14. Nd6
{[%clk 0:02:13.3]} 14... Bxd6 {[%clk 0:01:40.7]} 15. Bxd6 {[%clk 0:02:14.2]}
15... Rd8 {[%clk 0:01:30.2]} 16. dxc5 {[%clk 0:02:13.6]} 16... Qc6 {[%clk
0:01:11.3]} 17. Bxb8 {[%clk 0:02:01.8]} 17... Rxd1+ {[%clk 0:01:03.5]} 18. Qxd1
{[%clk 0:02:02.7]} 1-0

[Event "*** SCC Grand Prix: Titled Tuesday Blitz"]
[Site "Chess.com"]
[Date "2020.07.14"]
[Round "3"]
[White "Gandrade2"]
[Black "otrov-11"]
[Result "0-1"]
[WhiteElo "2115"]
[BlackElo "2367"]
[TimeControl "180+1"]
[EndTime "10:25:18 PDT"]
[Termination "otrov-11 won by resignation"]

1. d4 {[%clk 0:03:00.9]} 1... Nf6 {[%clk 0:02:59.8]} 2. c4 {[%clk 0:03:00.4]}
2... e5 {[%clk 0:02:57.9]} 3. dxe5 {[%clk 0:02:59.8]} 3... Ng4 {[%clk
0:02:57.9]} 4. Nf3 {[%clk 0:02:58.2]} 4... Nc6 {[%clk 0:02:56.5]} 5. Nc3 {[%clk
0:02:57.5]} 5... Ngxe5 {[%clk 0:02:55.6]} 6. e3 {[%clk 0:02:48.6]} 6... Bb4
{[%clk 0:02:51.8]} 7. Bd2 {[%clk 0:02:46.2]} 7... O-O {[%clk 0:02:50.4]} 8. Be2
{[%clk 0:02:43.8]} 8... Re8 {[%clk 0:02:50.3]} 9. O-O {[%clk 0:02:43.3]} 9... a5
{[%clk 0:02:48.5]} 10. a3 {[%clk 0:02:43.4]} 10... Bf8 {[%clk 0:02:48.2]} 11.
Nd5 {[%clk 0:02:35.5]} 11... d6 {[%clk 0:02:45.6]} 12. Bc3 {[%clk 0:02:35.2]}
12... Be6 {[%clk 0:02:44.2]} 13. Rc1 {[%clk 0:02:29.1]} 13... a4 {[%clk
0:02:34.5]} 14. Qc2 {[%clk 0:02:17.7]} 14... g6 {[%clk 0:02:22.4]} 15. Rfd1
{[%clk 0:01:51.2]} 15... Bg7 {[%clk 0:02:19.4]} 16. Nf4 {[%clk 0:01:35.3]} 16...
Bd7 {[%clk 0:02:09.4]} 17. Nd4 {[%clk 0:01:28.5]} 17... Qg5 {[%clk 0:01:54.1]}
18. Nh3 {[%clk 0:01:22.3]} 18... Bxh3 {[%clk 0:01:51.3]} 0-1

[Event "*** SCC Grand Prix: Titled Tuesday Blitz"]
[Site "Chess.com"]
[Date "2020.07.14"]
[Round "3"]
[White "ViktoriyaTarasova"]
[Black "Lector118"]
[Result "0-1"]
[WhiteElo "2230"]
[BlackElo "2483"]
[TimeControl "180+1"]
[EndTime "10:25:25 PDT"]
[Termination "Lector118 won by resignation"]

1. d4 {[%clk 0:03:00.9]} 1... d5 {[%clk 0:02:58]} 2. c4 {[%clk 0:02:58.4]} 2...
dxc4 {[%clk 0:02:58.9]} 3. e4 {[%clk 0:02:57.4]} 3... b5 {[%clk 0:02:58.8]} 4.
a4 {[%clk 0:02:51.2]} 4... c6 {[%clk 0:02:58.5]} 5. b3 {[%clk 0:02:51.1]} 5...
e5 {[%clk 0:02:58.3]} 6. axb5 {[%clk 0:02:27.2]} 6... cxb5 {[%clk 0:02:54.4]} 7.
d5 {[%clk 0:02:25.4]} 7... Nf6 {[%clk 0:02:46.8]} 8. f3 {[%clk 0:01:52.6]} 8...
Nxe4 {[%clk 0:02:29.2]} 9. fxe4 {[%clk 0:01:52.1]} 9... Qh4+ {[%clk 0:02:29.8]}
10. Kd2 {[%clk 0:01:49.8]} 10... Qxe4 {[%clk 0:02:29.8]} 11. Nf3 {[%clk
0:00:59.2]} 11... Bb4+ {[%clk 0:02:02.5]} 12. Nc3 {[%clk 0:00:56.8]} 12... Qxd5+
{[%clk 0:02:02.8]} 13. Kc2 {[%clk 0:00:53.5]} 13... Bf5+ {[%clk 0:02:02.1]} 0-1

[Event "*** SCC Grand Prix: Titled Tuesday Blitz"]
[Site "Chess.com"]
[Date "2020.07.14"]
[Round "3"]
[White "SidArun"]
[Black "jens1102"]
[Result "0-1"]
[WhiteElo "2248"]
[BlackElo "2427"]
[TimeControl "180+1"]
[EndTime "10:25:31 PDT"]
[Termination "jens1102 won by resignation"]

1. d4 {[%clk 0:03:00.9]} 1... Nf6 {[%clk 0:03:00]} 2. Bg5 {[%clk 0:03:00.8]}
2... e6 {[%clk 0:02:59.8]} 3. e4 {[%clk 0:02:59.9]} 3... c5 {[%clk 0:03:00.4]}
4. d5 {[%clk 0:02:57.6]} 4... d6 {[%clk 0:02:58.4]} 5. Nc3 {[%clk 0:02:50.7]}
5... h6 {[%clk 0:02:55.3]} 6. Bxf6 {[%clk 0:02:49.6]} 6... Qxf6 {[%clk
0:02:56.2]} 7. Nf3 {[%clk 0:02:49.7]} 7... e5 {[%clk 0:02:54.4]} 8. h3 {[%clk
0:02:48.3]} 8... g6 {[%clk 0:02:48.1]} 9. a4 {[%clk 0:02:48.1]} 9... Bg7 {[%clk
0:02:45.9]} 10. Nb5 {[%clk 0:02:46.6]} 10... Na6 {[%clk 0:02:42.2]} 11. Na3
{[%clk 0:02:44.3]} 11... O-O {[%clk 0:02:40.4]} 12. Bxa6 {[%clk 0:02:40.7]}
12... bxa6 {[%clk 0:02:40.3]} 13. Nc4 {[%clk 0:02:37]} 13... Bd7 {[%clk
0:02:35.4]} 14. Qe2 {[%clk 0:02:32.7]} 14... Rab8 {[%clk 0:02:31.7]} 15. b3
{[%clk 0:02:32.2]} 15... Rb4 {[%clk 0:02:28.2]} 16. Ne3 {[%clk 0:02:31.5]} 16...
Rxe4 {[%clk 0:02:22.5]} 17. Qxa6 {[%clk 0:02:30.5]} 17... Rxe3+ {[%clk
0:02:09.6]} 18. fxe3 {[%clk 0:02:27]} 18... e4 {[%clk 0:02:10.2]} 19. Ne5 {[%clk
0:02:17.3]} 19... Qh4+ {[%clk 0:01:58.9]} 20. Ke2 {[%clk 0:02:13.2]} 20... Bxe5
{[%clk 0:01:59.3]} 21. Raf1 {[%clk 0:02:08.9]} 21... Qg5 {[%clk 0:01:49.1]} 22.
g4 {[%clk 0:02:05.6]} 22... h5 {[%clk 0:01:40.8]} 23. Rhg1 {[%clk 0:02:04.6]}
23... hxg4 {[%clk 0:01:40.2]} 24. Qxa7 {[%clk 0:02:01.7]} 24... Bf5 {[%clk
0:01:37.1]} 25. Rxf5 {[%clk 0:01:35]} 25... Qxf5 {[%clk 0:01:34.4]} 26. hxg4
{[%clk 0:01:35.3]} 26... Qf3+ {[%clk 0:01:34.2]} 0-1

[Event "*** SCC Grand Prix: Titled Tuesday Blitz"]
[Site "Chess.com"]
[Date "2020.07.14"]
[Round "3"]
[White "fabianvivasz"]
[Black "TurboSteen"]
[Result "1-0"]
[WhiteElo "2256"]
[BlackElo "1935"]
[TimeControl "180+1"]
[EndTime "10:25:48 PDT"]
[Termination "fabianvivasz won by checkmate"]

1. e4 {[%clk 0:03:00.9]} 1... e6 {[%clk 0:02:57.2]} 2. d4 {[%clk 0:03:00.4]}
2... d5 {[%clk 0:02:57]} 3. Nd2 {[%clk 0:03:01.1]} 3... Nf6 {[%clk 0:02:55.4]}
4. e5 {[%clk 0:03:00.8]} 4... Nfd7 {[%clk 0:02:53.5]} 5. Ngf3 {[%clk 0:03:01.2]}
5... c5 {[%clk 0:02:53.6]} 6. c3 {[%clk 0:03:01.9]} 6... Nc6 {[%clk 0:02:53.4]}
7. Bd3 {[%clk 0:03:02.4]} 7... cxd4 {[%clk 0:02:52.5]} 8. cxd4 {[%clk
0:03:03.3]} 8... f6 {[%clk 0:02:52.4]} 9. exf6 {[%clk 0:03:00.8]} 9... Nxf6
{[%clk 0:02:52.2]} 10. O-O {[%clk 0:02:59.6]} 10... Bd6 {[%clk 0:02:51.8]} 11.
b3 {[%clk 0:02:51.7]} 11... O-O {[%clk 0:02:47.4]} 12. Bb2 {[%clk 0:02:51.7]}
12... Bd7 {[%clk 0:02:45.9]} 13. Ne5 {[%clk 0:02:43.1]} 13... Qe8 {[%clk
0:02:38.7]} 14. Re1 {[%clk 0:02:36.5]} 14... Rc8 {[%clk 0:02:34]} 15. Rc1 {[%clk
0:02:33.8]} 15... Bb8 {[%clk 0:02:24.7]} 16. Bb1 {[%clk 0:02:29.1]} 16... Nxe5
{[%clk 0:02:13.6]} 17. Rxc8 {[%clk 0:02:26.2]} 17... Bxc8 {[%clk 0:02:08.7]} 18.
dxe5 {[%clk 0:02:25.6]} 18... Nd7 {[%clk 0:02:07.9]} 19. Qg4 {[%clk 0:02:10.5]}
19... Nc5 {[%clk 0:01:53.7]} 20. Re3 {[%clk 0:02:04.3]} 20... a5 {[%clk
0:01:50.7]} 21. Rh3 {[%clk 0:01:53.5]} 21... g6 {[%clk 0:01:47.8]} 22. Nf3
{[%clk 0:01:39.3]} 22... Ba7 {[%clk 0:01:42.9]} 23. Bd4 {[%clk 0:01:27.5]} 23...
Qc6 {[%clk 0:01:36.3]} 24. Rxh7 {[%clk 0:01:20.8]} 24... Ne4 {[%clk 0:01:31.1]}
25. Qxg6# {[%clk 0:01:20.1]} 1-0

[Event "*** SCC Grand Prix: Titled Tuesday Blitz"]
[Site "Chess.com"]
[Date "2020.07.14"]
[Round "3"]
[White "GHANDEEVAM2003"]
[Black "r31415"]
[Result "1-0"]
[WhiteElo "3014"]
[BlackElo "2445"]
[TimeControl "180+1"]
[EndTime "10:25:53 PDT"]
[Termination "GHANDEEVAM2003 won by resignation"]

1. c4 {[%clk 0:03:00.9]} 1... d6 {[%clk 0:02:58.7]} 2. Nc3 {[%clk 0:03:00.3]}
2... f5 {[%clk 0:02:56.3]} 3. e4 {[%clk 0:02:57.6]} 3... Nf6 {[%clk 0:02:48.8]}
4. Bd3 {[%clk 0:02:48.2]} 4... f4 {[%clk 0:02:37.2]} 5. Bc2 {[%clk 0:02:43.7]}
5... e5 {[%clk 0:02:33.4]} 6. d4 {[%clk 0:02:44.1]} 6... Nbd7 {[%clk 0:02:30.7]}
7. Nf3 {[%clk 0:02:42.7]} 7... Be7 {[%clk 0:02:18.5]} 8. Ng5 {[%clk 0:02:42.5]}
8... Nf8 {[%clk 0:01:59.3]} 9. c5 {[%clk 0:02:42.3]} 9... h6 {[%clk 0:01:39]}
10. Nf3 {[%clk 0:02:41.5]} 10... N8d7 {[%clk 0:01:24.3]} 11. cxd6 {[%clk
0:02:41.3]} 11... cxd6 {[%clk 0:01:24.3]} 12. Bb3 {[%clk 0:02:41.3]} 12... g5
{[%clk 0:01:17]} 13. dxe5 {[%clk 0:02:36.6]} 13... dxe5 {[%clk 0:01:16.7]} 14.
Nd5 {[%clk 0:02:34.3]} 14... Nxd5 {[%clk 0:01:03.4]} 15. Qxd5 {[%clk 0:02:35.2]}
15... Bb4+ {[%clk 0:01:00.4]} 16. Bd2 {[%clk 0:02:34.9]} 16... Bxd2+ {[%clk
0:01:00.3]} 17. Nxd2 {[%clk 0:02:35.8]} 17... Qe7 {[%clk 0:00:56]} 18. Nc4
{[%clk 0:02:36]} 18... Nf6 {[%clk 0:00:43.9]} 19. Qxe5 {[%clk 0:02:35.7]} 19...
Qxe5 {[%clk 0:00:40]} 20. Nxe5 {[%clk 0:02:36.6]} 20... Nxe4 {[%clk 0:00:40.9]}
21. Ba4+ {[%clk 0:02:35.2]} 21... Kf8 {[%clk 0:00:36.5]} 22. Ng6+ {[%clk
0:02:35.1]} 22... Kg7 {[%clk 0:00:37.4]} 23. Nxh8 {[%clk 0:02:36]} 23... Kxh8
{[%clk 0:00:38.3]} 24. f3 {[%clk 0:02:31.5]} 24... Nc5 {[%clk 0:00:36.4]} 25.
Bc2 {[%clk 0:02:30.1]} 25... Bd7 {[%clk 0:00:35.9]} 26. O-O-O {[%clk 0:02:29.6]}
26... Bc6 {[%clk 0:00:35.7]} 27. Rd6 {[%clk 0:02:27.6]} 27... Kg7 {[%clk
0:00:34.9]} 28. Rg6+ {[%clk 0:02:27.5]} 1-0